bitfinex-derivatives/quotes_BNBF0:USTF0_20250331
["timestamp","ask_amount","ask_price","bid_price","bid_amount"]
[1743408198734,1.034,595.16,592.63,0.28890615]
[1743408198933,1.034,595.16,592.64,0.28890615]
[1743408199334,1.034,595.16,592.65,0.28890615]
[1743408199533,1.034,595.16,592.66,0.28890615]
[1743408199740,1.034,595.16,592.78,0.33739329]
[1743408199939,1.034,595.16,592.79,0.28890615]
[1743408200234,1.034,595.16,592.9,0.33732501]
[1743408200441,1.034,595.16,592.91,0.28890615]
[1743408200741,1.034,595.16,593.02,0.33725675]
[1743408200942,1.034,595.16,593.03,0.28890615]
[1743408201142,1.034,595.16,593.13,0.3371942]
[1743408201343,1.034,595.16,593.14,0.28890615]
[1743408201542,1.034,595.16,593.24,0.33713168]
[1743408201741,1.034,595.16,593.25,0.28890615]
[1743408201944,1.034,595.16,593.27,0.33711463]
[1743408202239,1.034,595.16,593.28,0.28890615]
[1743408202444,1.034,595.16,593.3,0.33709758]
[1743408202743,1.034,595.16,593.31,0.28890615]
[1743408203043,1.034,595.16,593.33,0.33708054]
[1743408203242,1.034,595.16,593.34,0.28890615]
[1743408203438,1.034,595.16,593.35,0.28890615]
[1743408203637,1.034,595.16,593.36,0.28890615]
[1743408203838,1.034,595.16,593.33,0.33708054]
[1743408203839,1.034,595.16,593.37,0.28890615]
[1743408204037,1.034,595.16,593.38,0.28890615]
[1743408204244,1.034,595.16,593.33,0.33708054]
[1743408204245,1.034,595.16,593.39,0.28890615]
[1743408204439,1.034,595.16,593.4,0.28890615]
[1743408204643,1.034,595.16,593.33,0.33708054]
[1743408204839,1.034,595.16,593.34,0.28872248]
[1743408205146,1.034,595.16,593.36,0.3370635]
[1743408205446,1.034,595.16,593.37,0.28872248]
[1743408205643,1.034,595.16,593.39,0.33704646]
[1743408205841,1.034,595.16,593.4,0.28872248]
[1743408206043,1.034,595.16,593.41,0.28872248]
[1743408206348,1.034,595.16,593.42,0.28872248]
[1743408206645,1.034,595.16,593.39,0.33704646]
[1743408206845,1.034,595.16,593.44,0.33701806]
[1743408207043,1.034,595.16,593.45,0.28872139]
[1743408207241,1.034,595.16,593.47,0.33700102]
[1743408207440,1.034,595.16,593.48,0.28872139]
[1743408207645,1.034,595.16,593.5,0.33698399]
[1743408207843,1.034,595.16,593.51,0.28872139]
[1743408208346,1.034,595.16,593.53,0.33696696]
[1743408208743,1.034,595.16,593.54,0.28872139]
[1743408208945,1.034,595.16,593.55,0.28872139]
[1743408209247,1.034,595.16,593.56,0.28872139]
[1743408209446,1.034,595.16,593.57,0.28872139]
[1743408209647,1.034,595.16,593.58,0.28872139]
[1743408209947,1.034,595.16,593.59,0.28872139]
[1743408210140,1.034,595.16,593.61,0.33692154]
[1743408210348,1.034,595.16,593.62,0.28872139]
[1743408210546,1.028,595.15,593.64,0.33690452]
[1743408210748,1.028,595.15,593.65,0.28872139]
[1743408210949,1.028,595.15,593.66,0.28872139]
[1743408211244,1.028,595.15,593.67,0.62560888]
[1743408211442,1.028,595.15,593.68,0.28872139]
[1743408211643,1.028,595.15,593.69,0.28872139]
[1743408211844,1.028,595.15,593.7,0.62559186]
[1743408212044,1.028,595.15,593.11,0.29252178]
[1743408212045,1.028,595.15,593.72,0.33685912]
[1743408212242,1.028,595.15,593.73,0.28872139]
[1743408212445,1.028,595.15,593.74,0.28872139]
[1743408212646,1.028,595.15,593.75,0.28872139]
[1743408212846,1.028,595.15,593.76,0.28872139]
[1743408213148,1.028,595.15,593.78,0.33682508]
[1743408213347,1.028,595.15,593.79,0.28872139]
[1743408213549,1.028,595.15,593.81,0.33680806]
[1743408213847,1.028,595.15,593.82,0.28872139]
[1743408214149,1.028,595.15,593.84,0.33679105]
[1743408214350,1.028,595.15,593.85,0.28872139]
[1743408214648,1.028,595.15,593.87,0.33677404]
[1743408214846,1.028,595.15,593.88,0.28872139]
[1743408215046,1.028,595.15,593.9,0.33675702]
[1743408215247,1.028,595.15,593.91,0.28872139]
[1743408215447,1.028,595.15,593.93,0.33674001]
[1743408215749,1.028,595.15,593.94,0.28872139]
[1743408216048,1.028,595.15,593.96,0.33672301]
[1743408216244,1.028,595.15,593.97,0.28872139]
[1743408216444,1.028,595.15,593.99,0.336706]
[1743408216748,1.028,595.15,594.0,0.28872139]
[1743408216945,1.028,595.15,594.02,0.336689]
[1743408217145,1.028,595.15,594.03,0.28872139]
[1743408217347,1.028,595.15,594.05,0.33667199]
[1743408217747,1.028,595.15,594.06,0.28872139]
[1743408217947,1.028,595.15,594.08,0.33665499]
[1743408218143,1.028,595.15,594.09,0.28872139]
[1743408218345,1.028,595.15,594.11,0.33663799]
[1743408218546,1.028,595.15,594.12,0.28872139]
[1743408218845,1.028,595.15,594.13,0.28872139]
[1743408219046,1.028,595.15,594.14,0.28872139]
[1743408219449,1.028,595.15,594.15,0.28872139]
[1743408219649,1.028,595.15,594.16,0.28872139]
[1743408219842,1.028,595.15,594.17,0.28872139]
[1743408220053,1.028,595.15,594.18,0.28872139]
[1743408220248,1.028,595.15,594.19,0.28872139]
[1743408220448,1.028,595.15,594.2,0.28872139]
[1743408220645,1.028,595.15,594.11,0.33663799]
[1743408220646,1.028,595.15,594.21,0.28872139]
[1743408220847,1.028,595.15,594.23,0.33657001]
[1743408221046,1.028,595.15,594.24,0.28872139]
[1743408221247,1.028,595.15,594.25,0.28872139]
[1743408221450,1.028,595.15,594.26,0.28872139]
[1743408221650,1.028,595.15,594.28,0.33654169]
[1743408221854,1.028,595.15,594.29,0.28872139]
[1743408222154,1.028,595.15,594.31,0.3365247]
[1743408222155,0.837,595.14,594.31,0.3365247]
[1743408222454,0.837,595.14,594.32,0.28872139]
[1743408222853,0.837,595.14,594.34,0.33650772]
[1743408223149,0.837,595.14,594.35,0.28872139]
[1743408223655,0.837,595.14,594.36,0.28872139]
[1743408223854,0.837,595.14,594.37,0.28872139]
[1743408224054,0.837,595.14,594.38,0.28872139]
[1743408224252,0.837,595.14,594.39,0.28872139]
[1743408224452,0.837,595.14,594.4,0.28872139]
[1743408224654,0.837,595.14,594.41,0.33646809]
[1743408224952,0.837,595.14,594.42,0.28872139]
[1743408225156,0.837,595.14,594.43,0.62517816]
[1743408225355,0.837,595.14,594.44,0.6251725]
[1743408225560,0.837,595.14,594.45,0.28872139]
[1743408225854,0.837,595.14,594.46,0.28872139]
[1743408226056,0.837,595.14,594.47,0.28872139]
[1743408226348,0.837,595.14,594.48,0.28872139]
[1743408226753,0.837,595.14,594.49,0.6251442]
[1743408227053,0.837,595.14,594.5,0.62513854]
[1743408227253,0.837,595.14,594.51,0.62513288]
[1743408227455,0.837,595.14,594.52,0.62512723]
[1743408227850,0.837,595.14,594.53,0.28872139]
[1743408228053,0.837,595.14,594.54,0.62511591]
[1743408228354,0.837,595.14,594.55,0.62511025]
[1743408228548,0.837,595.14,594.56,0.62510459]
[1743408228753,0.837,595.14,594.57,0.62509894]
[1743408228953,0.837,595.14,594.58,0.28872139]
[1743408229253,0.837,595.14,594.59,0.62508762]
[1743408229448,0.837,595.14,594.6,0.62508196]
[1743408229651,0.837,595.14,594.61,0.62507631]
[1743408229853,0.837,595.14,594.62,0.28872139]
[1743408230055,0.837,595.14,594.63,0.2886156]
[1743408230250,0.837,595.14,594.64,0.2886156]
[1743408230449,0.837,595.14,594.65,0.62494789]
[1743408230752,0.837,595.14,594.66,0.62494224]
[1743408230954,0.837,595.14,594.67,0.62493658]
[1743408231154,0.837,595.14,594.68,0.2886156]
[1743408231455,0.837,595.14,594.69,0.2886156]
[1743408231649,0.837,595.14,594.7,0.2886156]
[1743408231955,1.162,595.22,594.71,0.2886156]
[1743408232251,1.162,595.22,594.72,0.2886156]
[1743408232653,1.162,595.22,594.73,0.2886156]
[1743408232951,1.162,595.22,594.74,0.2886156]
[1743408233157,1.162,595.22,594.75,0.2886156]
[1743408233357,1.162,595.22,594.76,0.2886156]
[1743408233557,1.162,595.22,594.67,0.33632098]
[1743408233558,1.162,595.22,594.77,0.2886156]
[1743408233760,1.162,595.22,594.78,0.2886156]
[1743408233956,1.162,595.22,594.68,0.2886156]
[1743408234158,1.162,595.22,594.69,0.2886156]
[1743408234452,1.162,595.22,594.7,0.2886156]
[1743408234657,1.162,595.22,594.68,0.2886156]
[1743408234956,1.162,595.22,594.69,0.2886156]
[1743408235153,1.162,595.22,594.7,0.2886156]
[1743408235352,1.162,595.22,594.68,0.2886156]
[1743408235556,1.162,595.22,594.69,0.2886156]
[1743408235754,1.162,595.22,594.68,0.2886156]
[1743408235955,1.162,595.22,594.69,0.2886156]
[1743408236254,1.162,595.22,594.7,0.2886156]
[1743408236454,1.162,595.22,594.68,0.2886156]
[1743408236653,1.162,595.22,594.67,0.33632098]
[1743408236858,1.162,595.22,594.68,0.27415196]
[1743408239158,1.162,595.22,594.67,0.33632098]
[1743408239559,1.162,595.22,594.68,0.27410687]
[1743408240762,1.162,595.22,594.69,0.33630967]
[1743408240961,1.162,595.22,594.7,0.27410687]
[1743408242058,1.162,595.22,594.69,0.33630967]
[1743408242262,1.162,595.22,594.7,0.27408394]
[1743408249168,1.162,595.22,594.69,0.33630967]
[1743408249368,1.162,595.22,594.7,0.27408401]
[1743408251267,1.162,595.22,594.71,0.27413131]
[1743408251467,1.162,595.22,594.72,0.27413131]
[1743408251666,1.162,595.22,594.73,0.27413131]
[1743408251865,1.162,595.22,594.7,0.27413131]
[1743408252065,1.162,595.22,594.71,0.27413131]
[1743408252269,1.162,595.22,594.7,0.27413131]
[1743408252469,1.162,595.22,594.7,0.61043532]
[1743408252671,1.162,595.22,594.71,0.61042967]
[1743408252973,1.162,595.22,594.72,0.27404258]
[1743408253373,1.162,595.22,594.73,0.27404258]
[1743408253675,1.162,595.22,594.74,0.27404258]
[1743408253867,1.162,595.22,594.75,0.27404258]
[1743408254072,1.162,595.22,594.76,0.27404258]
[1743408254373,1.162,595.22,594.77,0.61030701]
[1743408254573,1.162,595.22,594.78,0.33625878]
[1743408254774,1.162,595.22,594.79,0.27404258]
[1743408254974,1.162,595.22,594.8,0.33624747]
[1743408255175,1.028,595.26,594.81,0.27404258]
[1743408255475,1.028,595.26,594.82,0.33623617]
[1743408255674,1.028,595.26,594.83,0.27404258]
[1743408255877,1.028,595.26,594.83,0.61027309]
[1743408256076,1.028,595.26,594.84,0.27404258]
[1743408256375,1.028,595.26,594.83,0.33623051]
[1743408256677,5.17359338,595.71,594.84,0.2739812]
[1743408256876,5.17359338,595.7,594.84,0.2739812]
[1743408257071,2.24111704,595.69,594.84,0.2739812]
[1743408257276,2.24111704,595.68,594.84,0.2739812]
[1743408257576,3.36973761,595.67,594.84,0.2739812]
[1743408257773,0.8548825,595.66,594.84,0.2739812]
[1743408258076,1.12815854,595.67,594.84,0.2739812]
[1743408258475,1.98346543,595.66,594.84,0.2739812]
[1743408258675,1.12815854,595.66,594.84,0.2739812]
[1743408259076,2.19315854,595.65,594.84,0.2739812]
[1743408259477,1.98353984,595.64,594.84,0.2739812]
[1743408259776,0.85540166,595.63,594.84,0.2739812]
[1743408259977,1.12815854,595.62,594.83,0.33623051]
[1743408260174,2.24338307,595.61,594.84,0.27400125]
[1743408260374,2.24338307,595.6,594.84,0.27400125]
[1743408260575,2.24382874,595.59,594.84,0.27400125]
[1743408260873,1.12815854,595.59,594.84,0.27400125]
[1743408261377,1.12815854,595.58,594.84,0.27400125]
[1743408261971,1.027,595.6,594.85,0.27403212]
[1743408261972,1.12815854,595.57,594.85,0.27403212]
[1743408262170,1.12815854,595.57,594.84,0.27403212]
[1743408262777,1.12815854,595.56,594.84,0.27403212]
[1743408263377,1.12815854,595.55,594.84,0.27403212]
[1743408263779,1.027,595.6,594.84,0.27403212]
[1743408263976,1.38957685,595.59,594.84,0.27403212]
[1743408264181,1.13053168,595.59,594.84,0.27403212]
[1743408264582,1.027,595.6,594.84,0.27403212]
[1743408264782,1.027,595.6,594.85,0.27403212]
[1743408264982,1.027,595.6,594.86,0.27403212]
[1743408265186,1.027,595.6,594.87,0.27403212]
[1743408265388,1.027,595.6,594.83,0.33623051]
[1743408265581,1.027,595.6,594.84,0.27399227]
[1743408265785,1.027,595.6,594.85,0.27399227]
[1743408265983,1.027,595.6,594.84,0.27399227]
[1743408266186,0.85633498,595.59,594.85,0.27399227]
[1743408266386,2.24595022,595.58,594.84,0.27399227]
[1743408266686,2.24595022,595.57,594.85,0.27399227]
[1743408266887,0.85633498,595.56,594.84,0.27399227]
[1743408267088,2.24567917,595.55,594.85,0.27399227]
[1743408267393,5.18470654,595.54,594.86,0.27399227]
[1743408267591,5.83801917,595.53,594.86,0.27399227]
[1743408267795,2.24567917,595.52,594.87,0.27399227]
[1743408268094,5.18470654,595.51,594.88,0.27399227]
[1743408268292,2.24567917,595.5,594.89,0.27399227]
[1743408268494,1.13053437,595.49,594.84,0.27399227]
[1743408268694,1.13053437,595.49,594.85,0.27399227]
[1743408268993,1.027,595.6,594.86,0.27399227]
[1743408269194,1.027,595.6,594.87,0.27399227]
[1743408269395,1.027,595.6,594.88,0.27399227]
[1743408269689,1.027,595.6,594.89,0.27399227]
[1743408269895,1.027,595.6,594.84,0.27399227]
[1743408270093,1.027,595.6,594.85,0.27399227]
[1743408270393,1.027,595.6,594.83,0.62855449]
[1743408270394,1.027,595.6,594.86,0.27399227]
[1743408270587,1.027,595.6,594.87,0.27399227]
[1743408270793,1.027,595.6,594.88,0.33620225]
[1743408270990,1.027,595.6,594.89,0.27399227]
[1743408271187,1.027,595.6,594.9,0.33619095]
[1743408271388,1.027,595.6,594.91,0.27399227]
[1743408271590,1.027,595.6,594.92,0.33617965]
[1743408271787,1.027,595.6,594.93,0.27399227]
[1743408271989,1.027,595.6,594.94,0.33616835]
[1743408272193,1.027,595.6,594.95,0.27399227]
[1743408274091,1.027,595.6,594.19,0.27399227]
[1743408274288,1.027,595.6,594.2,0.27399227]
[1743408274593,1.027,595.6,594.88,0.29235222]
[1743408274791,1.027,595.6,594.89,0.27396623]
[1743408274994,1.027,595.6,594.13,0.27396623]
[1743408275188,1.027,595.6,594.14,0.27396623]
[1743408275394,1.027,595.6,594.15,0.27396623]
[1743408275595,1.065,595.65,594.16,0.27396623]
[1743408275793,1.065,595.65,594.17,0.27396623]
[1743408275989,1.065,595.65,594.18,0.27396623]
[1743408276192,1.065,595.65,594.18,0.29236818]
[1743408276394,1.13052078,595.64,594.19,0.2739828]
[1743408276693,1.13052078,595.64,594.2,0.2739828]
[1743408276895,1.13052078,595.64,594.21,0.2739828]
[1743408277090,1.065,595.65,594.22,0.2739828]
[1743408277292,1.065,595.65,594.23,0.2739828]
[1743408277494,1.065,595.65,594.24,0.2739828]
[1743408277694,1.065,595.65,594.25,0.2739828]
[1743408277893,1.065,595.65,594.26,0.2739828]
[1743408278194,1.065,595.65,594.27,0.2739828]
[1743408278495,0.945,595.64,594.28,0.2739828]
[1743408278696,0.945,595.64,594.29,0.2739828]
[1743408278998,0.945,595.64,594.3,0.2739828]
[1743408279191,0.945,595.64,594.31,0.2739828]
[1743408279393,0.945,595.64,594.32,0.2739828]
[1743408279591,0.945,595.64,594.33,0.2739828]
[1743408279795,0.945,595.64,594.34,0.2739828]
[1743408279994,0.945,595.64,594.35,0.2739828]
[1743408280197,0.945,595.64,594.36,0.2739828]
[1743408280397,0.945,595.64,594.37,0.2739828]
[1743408280592,0.945,595.64,594.38,0.2739828]
[1743408280798,0.945,595.64,594.39,0.2739828]
[1743408281097,0.945,595.64,594.4,0.2739828]
[1743408281298,0.945,595.64,594.41,0.2739828]
[1743408281494,0.945,595.64,594.42,0.2739828]
[1743408281693,0.945,595.64,594.43,0.2739828]
[1743408281897,0.945,595.64,594.44,0.27388718]
[1743408282093,0.945,595.64,594.45,0.27388718]
[1743408282295,0.945,595.64,594.46,0.27388718]
[1743408282493,0.945,595.64,594.47,0.27388718]
[1743408282697,0.945,595.64,594.48,0.27388718]
[1743408283002,0.945,595.64,594.49,0.27388718]
[1743408283194,0.945,595.64,594.5,0.27388718]
[1743408283395,0.945,595.64,594.51,0.27388718]
[1743408283599,0.945,595.64,594.27,2.55116369]
[1743408283600,0.945,595.64,594.52,0.27388718]
[1743408283795,0.945,595.64,594.53,0.27388718]
[1743408284000,0.945,595.64,594.54,0.27388718]
[1743408284301,0.945,595.64,594.27,2.55116369]
[1743408284302,0.945,595.64,594.55,0.27388718]
[1743408284497,0.945,595.64,594.56,0.27388718]
[1743408284699,0.945,595.64,594.25,0.29237432]
[1743408284700,0.945,595.64,594.57,0.27388718]
[1743408284896,0.945,595.64,594.58,0.27388718]
[1743408285097,0.945,595.64,594.59,0.27388718]
[1743408285299,0.945,595.64,594.6,0.27388718]
[1743408285694,0.945,595.64,594.61,0.27388718]
[1743408285898,0.945,595.64,594.62,0.27388718]
[1743408286195,0.945,595.64,594.63,0.27381591]
[1743408286395,0.945,595.64,594.64,0.27381591]
[1743408286698,0.945,595.64,594.65,0.27381591]
[1743408286894,0.945,595.64,594.66,0.27381591]
[1743408287096,0.945,595.64,594.67,0.27381591]
[1743408287301,0.945,595.64,594.33,2.55116369]
[1743408287596,0.945,595.64,594.36,2.55116369]
[1743408287797,0.945,595.64,594.37,0.27383139]
[1743408287997,0.945,595.64,594.38,0.27383139]
[1743408288194,0.945,595.64,594.39,0.27383139]
[1743408288397,0.945,595.64,594.4,0.27383139]
[1743408288594,0.945,595.64,594.41,0.27383139]
[1743408288802,0.945,595.64,594.42,0.27383139]
[1743408289199,0.945,595.64,594.25,2.55116369]
[1743408289397,0.945,595.64,594.26,0.27382561]
[1743408289594,0.945,595.64,594.32,0.2922626]
[1743408289795,0.945,595.64,594.33,0.27382561]
[1743408289997,0.945,595.64,594.34,0.27382561]
[1743408290202,0.945,595.64,594.35,0.27382561]
[1743408290403,0.945,595.64,594.36,0.27382561]
[1743408290698,0.945,595.64,594.37,0.27382561]
[1743408290902,0.945,595.64,594.38,0.27382561]
[1743408291098,0.945,595.64,594.39,0.27382561]
[1743408291403,0.945,595.64,594.4,0.27382561]
[1743408291604,0.945,595.64,594.41,0.27382561]
[1743408291805,1.191,595.63,594.42,0.27382561]
[1743408292004,1.191,595.63,594.43,0.27382561]
[1743408292201,1.191,595.63,594.44,0.27382561]
[1743408292402,1.191,595.63,594.45,0.27382561]
[1743408292606,1.191,595.63,594.46,0.27382561]
[1743408292901,1.191,595.63,594.47,0.27382561]
[1743408293101,1.191,595.63,594.48,0.27382561]
[1743408293303,1.191,595.63,594.49,0.27382561]
[1743408293503,1.191,595.63,594.5,0.27382561]
[1743408293700,1.191,595.63,594.51,0.27382561]
[1743408293905,1.191,595.63,594.36,0.2922761]
[1743408293906,1.191,595.63,594.52,0.27382561]
[1743408294206,1.191,595.63,594.53,0.27382561]
[1743408294408,1.191,595.63,594.36,0.2922761]
[1743408294600,1.191,595.63,594.37,0.2738207]
[1743408295004,1.191,595.63,594.1,0.2738207]
[1743408295204,1.191,595.63,594.36,0.29225892]
[1743408295403,1.191,595.63,594.37,0.2738207]
[1743408295604,1.191,595.63,594.1,0.2738207]
[1743408295807,1.191,595.63,594.36,0.29225892]
[1743408296005,1.191,595.63,594.09,2.55116369]
[1743408296006,1.191,595.63,594.37,0.2738207]
[1743408296206,1.191,595.63,594.1,0.2738207]
[1743408296406,1.191,595.63,594.36,0.29225892]
[1743408296602,1.191,595.63,594.37,0.27376405]
[1743408296905,1.191,595.63,594.38,0.27376405]
[1743408297110,1.191,595.63,594.37,0.27376405]
[1743408297503,1.191,595.63,594.38,0.27376405]
[1743408297704,1.191,595.63,594.39,0.27376405]
[1743408297900,1.028,595.62,594.4,0.27376405]
[1743408298102,1.028,595.62,594.41,0.27376405]
[1743408298306,1.028,595.62,594.42,0.27376405]
[1743408298507,1.028,595.62,594.43,0.27376405]
[1743408298810,1.028,595.62,594.44,0.27376405]
[1743408299009,1.028,595.62,594.45,0.27376405]
[1743408299209,1.028,595.62,594.46,0.27376405]
[1743408299403,1.028,595.62,594.47,0.27376405]
[1743408299608,1.028,595.62,594.48,0.27376405]
[1743408299805,1.028,595.62,594.38,0.29235467]
[1743408299806,1.028,595.62,594.49,0.27376405]
[1743408300009,1.028,595.62,594.5,0.27376405]
[1743408300211,1.028,595.62,594.51,0.27376405]
[1743408300510,1.028,595.62,594.52,0.27376405]
[1743408300809,1.028,595.62,594.38,0.29235467]
[1743408300810,1.028,595.62,594.53,0.27376405]
[1743408301010,1.028,595.62,594.54,0.27376405]
[1743408301311,1.028,595.62,594.38,0.29235467]
[1743408301509,1.028,595.62,594.39,0.27374848]
[1743408301710,1.028,595.62,594.4,0.27374848]
[1743408301910,1.028,595.62,594.41,0.27374848]
[1743408302110,1.028,595.62,594.42,0.27374848]
[1743408302410,1.028,595.62,594.43,0.27374848]
[1743408302612,1.028,595.62,594.44,0.27374848]
[1743408302806,1.028,595.62,594.45,0.27374848]
[1743408303112,1.028,595.62,594.46,0.27374848]
[1743408303312,1.028,595.62,594.47,0.27374848]
[1743408303509,1.028,595.62,594.48,0.27374848]
[1743408303710,1.028,595.62,594.5,0.33641715]
[1743408303908,1.028,595.62,594.51,0.27374848]
[1743408304113,1.028,595.62,594.53,0.33640018]
[1743408304419,1.028,595.62,594.54,0.27374848]
[1743408304617,1.028,595.62,594.55,0.27374848]
[1743408304807,1.028,595.62,594.57,0.33637755]
[1743408305008,1.028,595.62,594.58,0.27374848]
[1743408305212,1.028,595.62,594.59,0.27374848]
[1743408305414,1.028,595.62,594.57,0.33637755]
[1743408305415,1.028,595.62,594.6,0.27374848]
[1743408305617,1.028,595.62,594.61,0.27374848]
[1743408305915,1.028,595.62,594.63,0.3363436]
[1743408306317,1.028,595.62,594.64,0.27374848]
[1743408306509,1.028,595.62,594.66,0.33632664]
[1743408306710,1.028,595.62,594.67,0.27374848]
[1743408306913,1.028,595.62,594.68,0.27374848]
[1743408307114,1.028,595.62,594.69,0.27374848]
[1743408307316,1.028,595.62,594.7,0.61005249]
[1743408307622,1.028,595.62,594.71,0.27374848]
[1743408307818,1.028,595.62,594.72,0.27374848]
[1743408308015,1.028,595.62,594.73,0.27374848]
[1743408308217,1.028,595.62,594.74,0.27374848]
[1743408308417,1.028,595.62,594.75,0.27374848]
[1743408308719,1.028,595.62,594.76,0.27375106]
[1743408308915,1.028,595.62,594.77,0.27375106]
[1743408309113,1.028,595.62,594.78,0.27375106]
[1743408309317,1.028,595.62,594.79,0.27375106]
[1743408309519,1.028,595.62,594.81,0.33624182]
[1743408309717,1.028,595.62,594.82,0.27375106]
[1743408309915,1.028,595.62,594.83,0.27375106]
[1743408310114,1.028,595.62,594.84,0.27375106]
[1743408310319,1.028,595.62,594.85,0.60997027]
[1743408310618,1.028,595.62,594.86,0.60996462]
[1743408310818,1.028,595.62,594.87,0.27375106]
[1743408311019,1.277,595.61,594.88,0.60995331]
[1743408311214,1.277,595.61,594.65,0.29219634]
[1743408311215,1.277,595.61,594.89,0.60994766]
[1743408311415,1.277,595.61,594.9,0.60994201]
[1743408311620,1.277,595.61,594.91,0.60993636]
[1743408311820,1.277,595.61,594.92,0.60993071]
[1743408312123,1.277,595.61,594.93,0.60992506]
[1743408312314,1.277,595.61,594.94,0.60991941]
[1743408312522,1.277,595.61,594.95,0.60991376]
[1743408312719,1.277,595.61,594.96,0.60990811]
[1743408312922,1.277,595.61,594.97,0.3361514]
[1743408313123,1.277,595.61,594.97,0.60990246]
[1743408313322,1.277,595.61,594.98,0.27375106]
[1743408313525,1.277,595.61,594.99,0.60989116]
[1743408313724,1.277,595.61,595.0,0.60988551]
[1743408313921,1.277,595.61,595.01,0.3361288]
[1743408314122,1.277,595.61,595.02,0.27372734]
[1743408314325,1.277,595.61,595.03,0.60984484]
[1743408314626,1.277,595.61,595.04,0.60983919]
[1743408314919,1.277,595.61,595.05,0.60983354]
[1743408315125,1.277,595.61,595.06,0.6098279]
[1743408315321,1.277,595.61,595.07,0.60982225]
[1743408315627,1.277,595.61,595.08,0.6098166]
[1743408315925,1.277,595.61,595.09,0.60981095]
[1743408316129,1.277,595.61,595.1,0.60980531]
[1743408316327,1.277,595.61,595.11,0.27372734]
[1743408316531,1.277,595.61,595.12,0.27372734]
[1743408316723,1.277,595.61,595.13,0.27372734]
[1743408316930,1.277,595.61,594.9,0.29213747]
[1743408316931,1.277,595.61,595.14,0.60978272]
[1743408317131,1.277,595.61,595.15,0.27372734]
[1743408317426,1.277,595.61,595.16,0.27372734]
[1743408317632,1.277,595.61,595.15,0.27372734]
[1743408317828,1.277,595.61,595.16,0.27372734]
[1743408318026,1.277,595.61,595.15,0.27372734]
[1743408318339,1.277,595.61,595.16,0.60977142]
[1743408318528,1.277,595.61,595.17,0.27372734]
[1743408318725,1.277,595.61,595.18,0.27372734]
[1743408318929,1.277,595.61,595.19,0.60975449]
[1743408319131,1.277,595.61,595.2,0.60974884]
[1743408319332,1.277,595.61,595.2,0.3360215]
[1743408319634,1.277,595.61,595.21,0.27373517]
[1743408319938,1.277,595.61,595.22,0.33601021]
[1743408320132,1.277,595.61,595.23,0.27373517]
[1743408320334,1.277,595.61,595.24,0.33599892]
[1743408320527,1.277,595.61,595.25,0.27373517]
[1743408320926,1.277,595.61,595.26,0.33598763]
[1743408321128,1.277,595.61,595.27,0.27374012]
[1743408321331,1.277,595.61,595.28,0.33597634]
[1743408321533,1.277,595.61,595.29,0.27374012]
[1743408321729,1.277,595.61,595.3,0.33596505]
[1743408321934,1.277,595.61,595.31,0.27374012]
[1743408324729,1.277,595.61,595.3,0.33596505]
[1743408324931,1.277,595.61,595.31,0.27377838]
[1743408326236,1.028,595.7,595.31,0.27377838]
[1743408329237,1.028,595.7,595.32,0.33595377]
[1743408329432,1.028,595.7,595.33,0.27377838]
[1743408329631,1.028,595.7,595.34,0.33594248]
[1743408329936,1.028,595.7,595.35,0.27377838]
[1743408333440,1.956,595.77,595.35,0.27377838]
[1743408337251,1.956,595.77,594.58,2.55116369]
[1743408337446,1.13407644,595.76,594.6,0.33636057]
[1743408337645,1.13407644,595.76,595.22,0.29224787]
[1743408337954,1.13407644,595.76,595.23,0.27388507]